fUSD/lending_fUSD_20241116
["ID","MTS","AMOUNT","RATE_DAILY","PERIOD"]
[342353667,1731769846405,-1200.9138744,9.999e-05,2]
[342353668,1731769846420,-3094.1361256,9.999e-05,2]
[342353669,1731769846436,-789.39258001,9.999e-05,2]
[342353670,1731769846448,-919.41129439,9.999e-05,2]
[342353671,1731769846458,-4802.94,9.999e-05,2]
[342353672,1731769846467,-4802.94,9.999e-05,2]
[342353674,1731769846477,-4802.94,9.999e-05,2]
[342353679,1731769846692,-588.95805012,9.999e-05,2]
[342353680,1731769846704,-4214.20917499,9.999e-05,2]
[342353681,1731769846713,-2841.92,9.999e-05,2]
[342353682,1731769846722,-2841.92,9.999e-05,2]
[342353683,1731769846732,-2841.92,9.999e-05,2]
[342353684,1731769846741,-2841.92,9.999e-05,2]
[342353685,1731769846750,-2841.92,9.999e-05,2]
[342353686,1731769846760,-2841.92,9.999e-05,2]
[342353687,1731769846769,-2503.89762501,9.999e-05,2]
[342353688,1731769846787,-338.02237499,9.999e-05,2]
[342353689,1731769846797,-2841.92,9.999e-05,2]
[342353690,1731769846807,-2841.92,9.999e-05,2]
[342353691,1731769846816,-2841.92,9.999e-05,2]
[342353692,1731769846826,-102.08726413,9.999e-05,2]
[342353693,1731769847109,-1011.51210892,9.999e-05,2]
[342353694,1731769896160,500.0,9e-05,2]
[342353695,1731769910666,500.0,9e-05,2]
[342353696,1731769918228,500.0,9e-05,2]
[342353697,1731769925847,500.0,9e-05,2]
[342353698,1731769930864,-4051.20128753,0.00012,5]
[342353699,1731769934287,500.0,9e-05,2]
[342353700,1731769943364,-53542.07075566,0.00012998,5]
[342353701,1731769948530,500.0,9e-05,2]
[342353702,1731769963414,-1215.17682974,9.999e-05,3]
[342353703,1731769980429,-500.0,9e-05,2]
[342353704,1731769980459,-500.0,9e-05,2]
[342353705,1731769981029,500.0,9e-05,2]
[342353706,1731769988750,500.0,9e-05,2]
[342353707,1731769997049,-1000.0,9.138e-05,2]
[342353708,1731770001965,2000.0,0.0002493,120]
[342353709,1731770004947,-762.8317,9.697e-05,2]
[342353710,1731770004976,-150.0,9.697e-05,2]
[342353711,1731770005004,-1636.2122,9.698e-05,2]
[342353712,1731770005112,-51285.01445414,9.698e-05,2]
[342353714,1731770312211,1333.0,0.00023233,120]
[342353715,1731770347483,906.95,8.219e-05,2]
[342353719,1731770601321,2000.0,0.00024999,120]
[342353720,1731770733172,-1994.42359524,8.891e-05,2]
[342353721,1731770829101,-250.0,8.875e-05,2]
[342353722,1731770829120,-2111.52640476,8.891e-05,2]
[342353723,1731770829144,-1620.2800202,8.895e-05,2]
[342353738,1731770961109,-400.43,8.839e-05,2]
[342353739,1731770961132,-1253.72,8.857e-05,2]
[342353740,1731770961156,-7193.65329422,8.894e-05,2]
[342353741,1731770961186,-7157.82641,8.894e-05,2]
[342353742,1731770965103,-8746.07178105,8.894e-05,2]
[342353743,1731770965134,-802.44851473,8.894e-05,2]
[342353744,1731770965157,-156.75,8.895e-05,2]
[342353745,1731770965182,-1000.0,8.909e-05,2]
[342353746,1731770965205,-187.27,8.923e-05,2]
[342353747,1731770965232,-343.52,8.965e-05,2]
[342353757,1731771013687,907.37601527,8.219e-05,2]
[342353758,1731771013711,27.77398473,8.219e-05,2]
[342353771,1731771032406,-454.12,9.027e-05,2]
[342353772,1731771032416,-581.20432727,9.038e-05,2]
[342353773,1731771032427,-3258.20925342,9.038e-05,2]
[342353774,1731771032438,-228.49,9.038e-05,2]
[342353775,1731771032447,-2500.0,9.598e-05,2]
[342353776,1731771032456,-200.0,9.6e-05,2]
[342353777,1731771032467,-300.0,9.669e-05,2]
[342353778,1731771032477,-4404.05,9.67e-05,2]
[342353779,1731771032489,-399.51,9.67e-05,2]
[342353780,1731771032499,-5000.0,9.696e-05,2]
[342353781,1731771032511,-5000.0,9.696e-05,2]
[342353782,1731771032526,-150.0,9.696e-05,2]
[342353783,1731771032535,-123786.022,9.697e-05,2]
[342353784,1731771032545,-2299.03311397,9.697e-05,2]
[342353785,1731771032558,-9046.67688603,9.697e-05,2]
[342353786,1731771032568,-500.0,9.697e-05,2]
[342353787,1731771032577,-500.0,9.697e-05,2]
[342353788,1731771032587,-500.0,9.697e-05,2]
[342353789,1731771032597,-545.67,9.697e-05,2]
[342353790,1731771032607,-5086.01,9.697e-05,2]
[342353791,1731771032617,-16734.19,9.697e-05,2]
[342353792,1731771032627,-2294.93,9.697e-05,2]
[342353793,1731771032636,-518.89472232,9.697e-05,2]
[342353794,1731771032646,-261.400002,9.697e-05,2]
[342353795,1731771032656,-73692.22838965,9.698e-05,2]
[342353796,1731771032667,-2237.42854397,9.698e-05,2]
[342353797,1731771032678,-1116.19,9.698e-05,2]
[342353798,1731771032694,-452.95011032,9.698e-05,2]
[342353800,1731771032707,-8317.72590192,9.698e-05,2]
[342353802,1731771032716,-2813.4572,9.698e-05,2]
[342353804,1731771032726,-3251.98414757,9.8e-05,2]
[342353806,1731771032737,-577.510323,9.9e-05,2]
[342353808,1731771032746,-37282.34055133,9.9e-05,2]
[342353810,1731771032757,-27829.41394511,9.9e-05,2]
[342353812,1731771032782,-1598.54784942,9.9e-05,2]
[342353814,1731771032794,-271.5238526,9.9e-05,2]
[342353816,1731771032805,-439.32430442,9.9e-05,2]
[342353818,1731771032816,-302.0000001,9.9e-05,2]
[342353820,1731771032828,-1080.0,9.9e-05,2]
[342353823,1731771032839,-10674.91272539,9.9e-05,2]
[342353824,1731771032849,-150.0,9.921e-05,2]
[342353826,1731771032859,-200.0,9.953e-05,2]
[342353827,1731771032868,-200.0,9.956e-05,2]
[342353828,1731771032878,-718.83125696,9.961e-05,2]
[342353829,1731771032887,-200.0,9.962e-05,2]
[342353830,1731771032896,-718.83125696,9.968e-05,2]
[342353831,1731771032906,-485.26,9.973e-05,14]
[342353832,1731771032915,-160.61171533,9.973e-05,2]
[342353833,1731771032924,-200.0,9.985e-05,2]
[342353834,1731771032934,-1195.757,9.985e-05,2]
[342353835,1731771032943,-718.83125696,9.987e-05,2]
[342353836,1731771032952,-718.83125696,9.992e-05,2]
[342353837,1731771032961,-718.83125696,9.992e-05,2]
[342353838,1731771032970,-200.0,9.995e-05,2]
[342353839,1731771032980,-500.0,9.997e-05,2]
[342353840,1731771032989,-325.20718848,9.997e-05,2]
[342353841,1731771032998,-32467.92148197,9.997e-05,2]
[342353842,1731771033007,-500.0,9.997e-05,2]
[342353843,1731771033022,-514.03286218,9.997e-05,2]
[342353844,1731771033031,-555.96384671,9.997e-05,2]
[342353845,1731771033041,-500.0,9.997e-05,2]
[342353846,1731771033050,-649.77069488,9.997e-05,2]
[342353847,1731771033060,-12799.70612999,9.997e-05,2]
[342353848,1731771033070,-332.75527609,9.997e-05,2]
[342353849,1731771033082,-545.67,9.997e-05,2]
[342353850,1731771033091,-500.0,9.997e-05,2]
[342353851,1731771033101,-5086.01,9.997e-05,2]
[342353852,1731771033111,-16734.19,9.997e-05,2]
[342353853,1731771033121,-500.0,9.998e-05,2]
[342353854,1731771033130,-178.98013,9.998e-05,2]
[342353855,1731771033140,-500.0,9.998e-05,2]
[342353856,1731771033150,-500.0,9.998e-05,2]
[342353857,1731771033159,-469.6741542,9.998e-05,2]
[342353858,1731771033168,-545.67,9.998e-05,2]
[342353859,1731771033178,-545.67,9.998e-05,2]
[342353860,1731771033187,-156.33,9.998e-05,2]
[342353861,1731771033197,-5086.01,9.998e-05,2]
[342353862,1731771033206,-5086.01,9.998e-05,2]
[342353863,1731771033216,-16734.19,9.998e-05,2]
[342353864,1731771033225,-16734.19,9.998e-05,2]
[342353865,1731771033234,-2294.93,9.998e-05,2]
[342353866,1731771033244,-2294.93,9.998e-05,2]
[342353867,1731771033253,-2294.93,9.998e-05,2]
[342353868,1731771033266,-2704.25680993,9.999e-05,2]
[342353869,1731771033276,-500.0,9.999e-05,2]
[342353870,1731771033286,-295.03914232,9.999e-05,2]
[342353871,1731771033296,-29990.63175093,9.999e-05,2]
[342353872,1731771033306,-545.67,9.999e-05,2]
[342353873,1731771033316,-545.67,9.999e-05,2]
[342353874,1731771033326,-325.06389537,9.999e-05,2]
[342353875,1731771033339,-220.60610463,9.999e-05,2]
[342353876,1731771033349,-545.67,9.999e-05,2]
[342353877,1731771033360,-545.67,9.999e-05,2]
[342353878,1731771033370,-545.67,9.999e-05,2]
[342353879,1731771033379,-545.67,9.999e-05,2]
[342353880,1731771033389,-545.67,9.999e-05,2]
[342353881,1731771033398,-545.67,9.999e-05,2]
[342353882,1731771033408,-64.80395787,9.999e-05,2]
[342353890,1731771038324,-480.86604213,9.999e-05,2]
[342353891,1731771038334,-545.67,9.999e-05,2]
[342353892,1731771038344,-430.6383558,9.999e-05,2]
[342353893,1731771038401,-115.0316442,9.999e-05,2]
[342353894,1731771038411,-545.67,9.999e-05,2]
[342353895,1731771038420,-545.67,9.999e-05,2]
[342353896,1731771038430,-545.67,9.999e-05,2]
[342353897,1731771038439,-545.67,9.999e-05,2]
[342353898,1731771038448,-545.67,9.999e-05,2]
[342353899,1731771038457,-545.67,9.999e-05,2]
[342353900,1731771038467,-545.67,9.999e-05,2]
[342353901,1731771038476,-545.80839783,9.999e-05,2]
[342353902,1731771038488,-5086.01,9.999e-05,2]
[342353903,1731771038498,-5086.01,9.999e-05,2]
[342353904,1731771038507,-5086.01,9.999e-05,2]
[342353905,1731771038519,-5086.01,9.999e-05,2]
[342353906,1731771038529,-5086.01,9.999e-05,2]
[342353907,1731771038538,-5086.01,9.999e-05,2]
[342353908,1731771038548,-5086.01,9.999e-05,2]
[342353909,1731771038558,-5086.01,9.999e-05,2]
[342353910,1731771038567,-5086.01,9.999e-05,2]
[342353911,1731771038576,-5086.01,9.999e-05,2]
[342353912,1731771038585,-5086.01,9.999e-05,2]
[342353913,1731771038594,-5086.01,9.999e-05,2]
[342353914,1731771038603,-5086.01,9.999e-05,2]
[342353915,1731771038612,-5086.01,9.999e-05,2]
[342353916,1731771038622,-5086.01,9.999e-05,2]
[342353917,1731771038631,-5086.01,9.999e-05,2]
[342353918,1731771038640,-5086.01,9.999e-05,2]
[342353919,1731771038649,-5086.01,9.999e-05,2]
[342353920,1731771038659,-5086.01,9.999e-05,2]
[342353921,1731771038668,-5086.17079465,9.999e-05,2]
[342353922,1731771038678,-16734.19,9.999e-05,2]
[342353923,1731771038688,-16734.19,9.999e-05,2]
[342353924,1731771038697,-3967.8685532,9.999e-05,2]
[342353925,1731771038709,-12766.3214468,9.999e-05,2]
[342353926,1731771038718,-16734.19,9.999e-05,2]
[342353927,1731771038727,-15933.831707,9.999e-05,2]
[342353928,1731771038738,-800.358293,9.999e-05,2]
[342353929,1731771038747,-16734.19,9.999e-05,2]
[342353930,1731771038756,-16734.19,9.999e-05,2]
[342353931,1731771038767,-16734.19,9.999e-05,2]
[342353932,1731771038776,-16734.19,9.999e-05,2]
[342353933,1731771038786,-16734.19,9.999e-05,2]
[342353935,1731771038795,-16734.19,9.999e-05,2]
[342353936,1731771038804,-12742.48185268,9.999e-05,2]
[342353938,1731771038815,-287.94711379,9.999e-05,2]
[342353939,1731771038827,-2289.6,9.999e-05,2]
[342353940,1731771038838,-1414.16103353,9.999e-05,2]
[342353941,1731771038847,-4207.01518636,9.999e-05,2]
[342353943,1731771038858,-8281.54082781,9.999e-05,2]
[342353945,1731771038874,-1123.87068724,9.999e-05,2]
[342353947,1731771038887,-2092.16754947,9.999e-05,2]
[342353948,1731771038899,-1029.59574912,9.999e-05,2]
[342353949,1731771038909,-760.19391065,9.999e-05,2]
[342353950,1731771038920,-1686.06993767,9.999e-05,2]
[342353951,1731771038931,-2271.04751685,9.999e-05,2]
[342353952,1731771038942,-12016.87863483,9.999e-05,2]
[342353953,1731771038952,-16734.19,9.999e-05,2]
[342353954,1731771038961,-16734.19,9.999e-05,2]
[342353955,1731771038971,-16734.19,9.999e-05,2]
[342353956,1731771038980,-6189.8951526,9.999e-05,2]
[342353957,1731771038991,-10544.2948474,9.999e-05,2]
[342353958,1731771039000,-16734.19,9.999e-05,2]
[342353959,1731771039009,-16734.38750672,9.999e-05,2]
[342353960,1731771039020,-2294.93,9.999e-05,2]
[342353961,1731771039029,-2294.93,9.999e-05,2]
[342353962,1731771039038,-2294.93,9.999e-05,2]
[342353963,1731771039047,-2294.93,9.999e-05,2]
[342353964,1731771039056,-2294.93,9.999e-05,2]
[342353965,1731771039065,-2294.93,9.999e-05,2]
[342353966,1731771039074,-2294.93,9.999e-05,2]
[342353967,1731771039083,-1922.61764588,9.999e-05,2]
[342353968,1731771039095,-366.97184,9.999e-05,2]
[342353969,1731771039105,-5.34051412,9.999e-05,2]
[342353970,1731771039114,-2294.93,9.999e-05,2]
[342353971,1731771039123,-2294.93,9.999e-05,2]
[342353972,1731771039132,-2294.93,9.999e-05,2]
[342353973,1731771039141,-998.12777807,9.999e-05,2]
[342353974,1731771039172,-1296.80222193,9.999e-05,2]
[342353975,1731771039181,-2294.93,9.999e-05,2]
[342353976,1731771039190,-2294.93,9.999e-05,2]
[342353977,1731771039199,-2294.93,9.999e-05,2]
[342353978,1731771039208,-2294.93,9.999e-05,2]
[342353979,1731771039217,-2294.93,9.999e-05,2]
[342353980,1731771039226,-2294.93,9.999e-05,2]
[342353981,1731771039235,-2294.93,9.999e-05,2]
[342353982,1731771039244,-2295.03604969,9.999e-05,2]
[342353983,1731771039252,-11433.65172838,9.999e-05,2]
[342353993,1731771040477,-4320.8653329,9.999e-05,2]
[342353994,1731771040597,-442.42293611,9.999e-05,2]
[342353995,1731771040609,-733.80292435,9.999e-05,2]
[342353996,1731771040621,-1006.89348289,9.999e-05,2]
[342353997,1731771040630,-1091.0,9.999e-05,2]
[342353998,1731771040639,-158.804,9.999e-05,2]
[342353999,1731771040648,-4900.16253162,0.0001,2]
[342354001,1731771040658,-1910.79858549,0.0001,2]
[342354003,1731771040674,-822.199993,0.0001,2]
[342354004,1731771040685,-1554.99999999,0.0001,2]
[342354005,1731771040696,-291.15119334,0.0001,2]
[342354006,1731771040711,-3395.75,0.0001,2]
[342354008,1731771040722,-224181.60203435,0.0001,2]
[342354009,1731771040732,-112332.75553336,0.0001,2]
[342354010,1731771040743,-890.90712876,0.0001,2]
[342354011,1731771040754,-891.05,0.0001,2]
[342354012,1731771040769,-3983.03603532,0.0001,2]
[342354025,1731771043181,-4840.8672504,0.0001,2]
[342354028,1731771043192,-683.42308022,0.0001,2]
[342354030,1731771043204,-29873.7130392,0.0001,2]
[342354032,1731771043215,-22095.18257204,0.0001,2]
[342354034,1731771043226,-346397.96840406,0.0001,2]
[342354038,1731771043241,-23562.55267108,0.0001,2]
[342354039,1731771043253,-3274.60545162,0.0001,2]
[342354041,1731771043263,-5261.00264157,0.0001,2]
[342354044,1731771043279,-1979.61483862,0.0001,2]
[342354045,1731771043290,-2407.874611,0.0001,2]
[342354047,1731771043302,-268.4697941,0.0001,2]
[342354049,1731771043314,-3909.2759,0.0001,2]
[342354051,1731771043330,-944.71036715,0.0001,2]
[342354052,1731771043341,-9053.29,0.0001,2]
[342354053,1731771043362,-135022.2996049,0.0001,2]
[342354054,1731771043373,-2572.29064,0.0001,2]
[342354056,1731771043385,-3594.37950155,0.0001,2]
[342354059,1731771043401,-3374.73490145,0.0001,2]
[342354063,1731771043434,-5500.0,0.0001,2]
[342354065,1731771043494,-2332.6658,0.0001,2]
[342354066,1731771043505,-7730.13626986,0.0001,2]
[342354067,1731771043516,-5987.67385568,0.0001,2]
[342354068,1731771043531,-1665.91894821,0.0001,2]
[342354069,1731771043544,-257751.92353379,0.0001,2]
[342354070,1731771043578,-445.59302202,0.0001,2]
[342354071,1731771043589,-470.1576,0.0001,2]
[342354087,1731771046172,-84918.65620059,0.0001,2]
[342354091,1731771046184,-34191.1887,0.0001,2]
[342354094,1731771046219,-3292.7139255,0.0001,2]
[342354095,1731771046231,-2291.9,0.0001,2]
[342354096,1731771046243,-22267.5,0.0001,2]
[342354097,1731771046254,-19012.4995,0.0001,2]
[342354098,1731771046266,-15139.87319,0.0001,2]
[342354099,1731771046284,-8899.7,0.0001,2]
[342354100,1731771046647,-7597.4,0.0001,2]
[342354101,1731771046701,-3542.70815698,0.0001,2]
[342354102,1731771046713,-1722.71524805,0.0001,2]
[342354103,1731771046724,-1405.8778735,0.0001,2]
[342354104,1731771046736,-4496.59914001,0.0001,2]
[342354105,1731771046756,-444050.00000019,0.0001,2]
[342354106,1731771046768,-4015.3267,0.0001,2]
[342354107,1731771046809,-454971.02719492,0.0001,2]
[342354108,1731771046821,-1917.02443207,0.0001,2]
[342354109,1731771046981,-786.09460999,0.0001,2]
[342354112,1731771046994,-334.9451448,0.0001,2]
[342354114,1731771047005,-3492.28932,0.0001,2]
[342354116,1731771047017,-7351.33893905,0.0001,2]
[342354162,1731771095553,1333.0,0.00023233,120]
[342354165,1731771201772,2000.0,0.00024999,120]
[342354166,1731771211116,200.0,0.00025,60]
[342354173,1731771748715,962.72,8.219e-05,2]
[342354180,1731771860624,1000.0,0.00025,60]
[342354181,1731771877794,1093.51484158,0.00023233,120]
[342354182,1731771887177,96019.37,8e-05,2]
[342354183,1731771890975,1000.0,0.00025,65]
[342354184,1731771892675,1000.0,0.00025,70]
[342354185,1731771894207,1000.0,0.00025,75]
[342354186,1731771896088,1000.0,0.00025,80]
[342354187,1731771897660,1000.0,0.00025,85]
[342354188,1731771899119,1000.0,0.00025,90]
[342354190,1731771931141,-250.0,8.558e-05,2]
[342354191,1731771931162,-960.62638616,8.608e-05,2]
[342354192,1731771931311,1000.0,0.00025,62]
[342354193,1731771935222,1000.0,0.00025,72]
[342354194,1731771954096,-498.46361384,8.608e-05,2]
[342354195,1731771954125,-150.0,8.634e-05,2]
[342354196,1731771954154,-5447.67374208,8.634e-05,2]
[342354197,1731771954179,-23900.0,8.635e-05,2]
[342354198,1731771954205,-436.7,8.745e-05,2]
[342354199,1731771954228,-1215.77,8.797e-05,2]
[342354200,1731771954250,-164.68,8.797e-05,2]
[342354201,1731771954274,-150.0,8.849e-05,2]
[342354202,1731771954296,-300.0,8.87e-05,2]
[342354203,1731771954321,-250.0,8.87e-05,2]
[342354204,1731771954343,-922.8,8.907e-05,2]
[342354205,1731771954366,-200.0,8.939e-05,2]
[342354206,1731771954388,-1081.65,9.021e-05,2]
[342354207,1731771954411,-1000.0,9.06e-05,2]
[342354208,1731771954434,-167.0,9.092e-05,2]
[342354209,1731771954457,-484.48,9.124e-05,2]
[342354210,1731771954481,-170.45,9.229e-05,2]
[342354211,1731771954505,-170.45,9.252e-05,2]
[342354212,1731771954529,-170.45,9.276e-05,2]
[342354213,1731771954552,-2621.2792,9.497e-05,2]
[342354214,1731771954577,-1000.0,9.497e-05,2]
[342354215,1731771954599,-1250.9515,9.497e-05,2]
[342354216,1731771954621,-255.0,9.497e-05,2]
[342354217,1731771954644,-201.13367907,9.573e-05,2]
[342354218,1731771954666,-811.12794584,9.587e-05,2]
[342354219,1731771954690,-535.4635501,9.596e-05,2]
[342354220,1731771954713,-500.0,9.596e-05,2]
[342354221,1731771954741,-539.07533262,9.596e-05,2]
[342354222,1731771954766,-500.0,9.596e-05,2]
[342354223,1731771954789,-500.0,9.596e-05,2]
[342354224,1731771954816,-211.60246835,9.596e-05,2]
[342354225,1731772018098,-150.0,9e-05,2]
[342354226,1731772018122,-21.30096249,9.084e-05,2]
[342354227,1731772037095,-162.51815999,9.084e-05,2]
[342354238,1731772232614,-250.0,9.002e-05,2]
[342354239,1731772232625,-34.54393929,9.084e-05,2]
[342354240,1731772232637,-781.63693823,9.084e-05,2]
[342354241,1731772232647,-192.3042,9.084e-05,2]
[342354242,1731772232657,-945.04,9.131e-05,2]
[342354243,1731772232667,-873.355,9.497e-05,2]
[342354244,1731772232677,-1921.1498,9.497e-05,2]
[342354245,1731772232687,-500.0,9.573e-05,2]
[342354246,1731772232697,-150.0,9.595e-05,2]
[342354247,1731772232706,-1000.0,9.596e-05,2]
[342354248,1731772232716,-500.0,9.596e-05,2]
[342354249,1731772232725,-500.0,9.596e-05,2]
[342354250,1731772232735,-500.0,9.596e-05,2]
[342354251,1731772232746,-159.46586378,9.596e-05,2]
[342354252,1731772232756,-500.0,9.596e-05,2]
[342354253,1731772232766,-500.0,9.596e-05,2]
[342354254,1731772232776,-500.0,9.596e-05,2]
[342354255,1731772232786,-367.51102579,9.596e-05,2]
[342354256,1731772232799,-500.0,9.596e-05,2]
[342354257,1731772232809,-1028.93,9.596e-05,2]
[342354258,1731772232820,-500.0,9.596e-05,2]
[342354259,1731772232830,-500.0,9.596e-05,2]
[342354260,1731772232840,-500.0,9.596e-05,2]
[342354261,1731772232851,-500.0,9.596e-05,2]
[342354262,1731772232862,-521.12,9.596e-05,2]
[342354263,1731772232875,-500.0,9.596e-05,2]
[342354264,1731772232885,-537.07,9.596e-05,2]
[342354265,1731772232895,-500.0,9.596e-05,2]
[342354266,1731772232905,-500.0,9.596e-05,2]
[342354267,1731772232916,-500.0,9.596e-05,2]
[342354268,1731772232926,-500.0,9.596e-05,2]
[342354269,1731772232940,-500.0,9.596e-05,2]
[342354270,1731772232949,-500.0,9.596e-05,2]
[342354271,1731772232959,-500.0,9.596e-05,2]
[342354272,1731772232968,-500.0,9.596e-05,2]
[342354273,1731772232978,-500.0,9.596e-05,2]
[342354274,1731772232988,-500.0,9.596e-05,2]
[342354275,1731772232998,-500.0,9.596e-05,2]
[342354276,1731772233008,-500.0,9.596e-05,2]
[342354277,1731772233018,-500.0,9.596e-05,2]
[342354278,1731772233030,-5310.9861,9.597e-05,2]
[342354279,1731772233040,-273.8877,9.597e-05,2]
[342354280,1731772233055,-35248.1572,9.597e-05,2]
[342354281,1731772233065,-1803.748,9.597e-05,2]
[342354282,1731772233075,-25243.5973,9.597e-05,2]
[342354283,1731772233085,-102614.32759405,9.597e-05,2]
[342354284,1731772233097,-297.98908549,9.597e-05,2]
[342354285,1731772233109,-999.948,9.597e-05,2]
[342354286,1731772233156,-587.66878533,9.597e-05,2]
[342354292,1731772238486,-446.976002,9.597e-05,2]
[342354301,1731772238565,-134.51329955,9.597e-05,2]
[342354303,1731772238577,-1809.24,9.597e-05,2]
[342354305,1731772238588,-268.90463087,9.597e-05,2]
[342354306,1731772238613,-932.84999996,9.597e-05,2]
[342354307,1731772238625,-33163.0469605,9.597e-05,2]
[342354308,1731772238638,-93629.99054225,9.597e-05,2]
[342354309,1731772238649,-916.083,9.597e-05,2]
[342354310,1731772238659,-15547.1,9.67e-05,2]
[342354311,1731772238668,-3766.04,9.67e-05,2]
[342354312,1731772238678,-478.91,9.67e-05,2]
[342354313,1731772238687,-409.45,9.67e-05,2]
[342354314,1731772238697,-9999.99,9.67e-05,2]
[342354315,1731772238707,-150.99,9.67e-05,2]
[342354316,1731772238717,-500.0,9.697e-05,2]
[342354317,1731772238727,-151.36346782,9.697e-05,2]
[342354318,1731772238737,-500.0,9.697e-05,2]
[342354319,1731772238746,-501.71987372,9.697e-05,2]
[342354320,1731772238756,-500.0,9.697e-05,2]
[342354321,1731772238766,-500.0,9.697e-05,2]
[342354322,1731772238776,-500.0,9.697e-05,2]
[342354323,1731772238785,-500.0,9.697e-05,2]
[342354324,1731772238795,-500.0,9.697e-05,2]
[342354325,1731772238806,-500.0,9.697e-05,2]
[342354326,1731772238816,-500.0,9.697e-05,2]
[342354327,1731772238831,-500.0,9.697e-05,2]
[342354328,1731772238841,-500.0,9.697e-05,2]
[342354329,1731772238851,-500.0,9.697e-05,2]
[342354330,1731772238862,-500.0,9.697e-05,2]
[342354331,1731772238874,-500.0,9.697e-05,2]
[342354332,1731772238884,-500.0,9.697e-05,2]
[342354333,1731772238894,-500.0,9.697e-05,2]
[342354334,1731772238904,-500.0,9.697e-05,2]
[342354335,1731772238914,-500.0,9.697e-05,2]
[342354336,1731772238924,-500.0,9.697e-05,2]
[342354337,1731772238934,-500.0,9.697e-05,2]
[342354338,1731772238943,-500.0,9.697e-05,2]
[342354339,1731772238953,-500.0,9.697e-05,2]
[342354340,1731772238963,-548.24836215,9.697e-05,2]
[342354341,1731772238973,-500.0,9.697e-05,2]
[342354342,1731772238984,-500.0,9.697e-05,2]
[342354343,1731772238994,-500.0,9.697e-05,2]
[342354344,1731772239003,-500.0,9.697e-05,2]
[342354345,1731772239012,-500.0,9.697e-05,2]
[342354346,1731772239022,-439.0461569,9.697e-05,2]
[342354347,1731772239031,-500.0,9.697e-05,2]
[342354349,1731772239040,-500.0,9.697e-05,2]
[342354351,1731772239052,-500.0,9.697e-05,2]
[342354352,1731772239061,-500.0,9.697e-05,2]
[342354354,1731772239070,-500.0,9.697e-05,2]
[342354356,1731772239080,-436.7,9.838e-05,2]
[342354358,1731772239090,-150.0,9.894e-05,2]
[342354360,1731772239100,-1849.6058,9.899e-05,2]
[342354362,1731772239111,-270.68100001,9.951e-05,2]
[342354364,1731772239121,-270.68100001,9.96e-05,2]
[342354366,1731772239130,-270.68100001,9.969e-05,2]
[342354368,1731772239140,-270.68100001,9.969e-05,2]
[342354370,1731772239150,-2469.0,9.973e-05,2]
[342354373,1731772239160,-163.21834554,9.973e-05,2]
[342354376,1731772239170,-183.26118274,9.973e-05,2]
[342354377,1731772239180,-160.52115197,9.973e-05,2]
[342354380,1731772239190,-500.0,9.973e-05,2]
[342354383,1731772239199,-500.0,9.973e-05,2]
[342354384,1731772239209,-1006.543,9.989e-05,2]
[342354385,1731772239218,-270.68100001,9.99e-05,2]
[342354386,1731772239228,-500.31317723,9.997e-05,2]
[342354387,1731772239238,-500.02746644,9.997e-05,2]
[342354388,1731772239247,-500.0,9.997e-05,2]
[342354389,1731772239257,-500.0,9.997e-05,2]
[342354390,1731772239267,-500.0,9.997e-05,2]
[342354391,1731772239276,-500.0,9.997e-05,2]
[342354392,1731772239286,-500.0,9.997e-05,2]
[342354393,1731772239299,-500.0,9.997e-05,2]
[342354394,1731772239311,-500.0,9.997e-05,2]
[342354395,1731772239320,-500.0,9.997e-05,2]
[342354396,1731772239330,-500.0,9.997e-05,2]
[342354397,1731772239340,-500.0,9.997e-05,2]
[342354398,1731772239350,-500.0,9.997e-05,2]
[342354400,1731772239359,-500.0,9.997e-05,2]
[342354402,1731772239370,-500.0,9.997e-05,2]
[342354404,1731772239381,-500.0,9.997e-05,2]
[342354406,1731772239391,-500.0,9.997e-05,2]
[342354408,1731772239401,-500.0,9.997e-05,2]
[342354410,1731772239411,-393.86367003,9.997e-05,2]
[342354412,1731772239420,-500.0,9.997e-05,2]
[342354414,1731772239433,-500.0,9.997e-05,2]
[342354416,1731772239442,-500.0,9.997e-05,2]
[342354418,1731772239452,-500.0,9.997e-05,2]
[342354420,1731772239462,-525.1628119,9.997e-05,2]